bitfinex-derivatives/quotes_ETHF0:USTF0_20250624
["timestamp","ask_amount","ask_price","bid_price","bid_amount"]
[1750807010709,29.12513,2433.0,2432.9,1.44035431]
[1750807010909,29.12513,2433.0,2432.9,2.85565431]
[1750807011413,28.4678,2433.0,2432.9,2.85565431]
[1750807012717,3.2078,2433.0,2432.9,2.85565431]
[1750807013215,0.65733,2433.0,2432.9,1.44035431]
[1750807013416,3.0636072,2433.1,2433.0,0.65733]
[1750807013614,3.0636072,2433.1,2433.0,1.44032431]
[1750807014316,4.11045626,2433.1,2433.0,1.44032431]
[1750807014617,3.0636072,2433.1,2433.0,1.44032431]
[1750807015723,2.4062872,2433.1,2433.0,1.44032431]
[1750807017116,2.4062872,2433.1,2433.0,2.12292431]
[1750807017812,3.2078,2433.3,2433.0,1.46559431]
[1750807018016,28.4668,2433.3,2433.2,1.44026431]
[1750807018214,29.51386701,2433.3,2433.2,1.44026431]
[1750807018522,30.17106966,2433.3,2433.2,1.44026431]
[1750807018821,26.30601966,2433.3,2433.2,1.44026431]
[1750807019016,1.04701966,2433.3,2433.2,1.44026431]
[1750807019220,27.6652872,2433.4,2433.3,0.65725]
[1750807019519,28.7125833,2433.4,2433.3,3.58634431]
[1750807020416,2.4062872,2433.5,2433.4,0.65722]
[1750807020617,3.4538419,2433.5,2433.4,2.08882]
[1750807020815,3.4538419,2433.5,2433.4,2.87181431]
[1750807021016,1.0475547,2433.5,2433.4,2.87181431]
[1750807021216,27.6632872,2433.7,2433.6,0.65717]
[1750807021423,3.45455437,2433.7,2433.6,1.44016431]
[1750807022124,5.6140872,2433.9,2433.8,0.65711]
[1750807022320,6.6622871,2433.9,2433.8,1.44010431]
[1750807022724,5.6140872,2433.9,2433.8,2.13480431]
[1750807024020,2.4062872,2434.3,2433.9,1.64266]
[1750807024223,2.4062872,2434.3,2434.2,0.657]
[1750807024422,3.45257274,2434.3,2434.2,1.43999431]
[1750807024911,4.10955274,2434.3,2434.2,1.43999431]
[1750807025514,2.4062872,2434.3,2434.2,1.43999431]
[1750807025725,3.45203693,2434.3,2434.2,1.43999431]
[1750807026424,2.4062872,2434.3,2434.2,1.43999431]
[1750807032828,2.4062872,2434.5,2434.2,2.42550431]
[1750807033131,35.70171,2434.6,2434.5,0.65692]
[1750807033529,3.2078,2434.6,2434.5,1.43991431]
[1750807033918,28.4558,2434.9,2434.8,0.65684]
[1750807034332,30.8620872,2434.9,2434.8,1.43983431]
[1750807034534,5.6140872,2434.9,2434.8,1.43983431]
[1750807034723,0.6914,2435.2,2434.8,1.43983431]
[1750807034929,2.4062872,2435.3,2435.2,0.65674]
[1750807035125,2.4062872,2435.3,2435.1,0.65675]
[1750807035330,2.4062872,2435.3,2435.2,1.43973431]
[1750807035631,2.4062872,2435.3,2435.2,0.65674]
[1750807035831,2.4062872,2435.3,2435.2,1.43973431]
[1750807036331,11.78116695,2435.4,2435.3,0.65671]
[1750807036536,11.78116695,2435.4,2435.3,1.43970431]
[1750807036833,11.78116695,2435.4,2435.3,0.78299431]
[1750807037236,11.78116695,2435.4,2435.3,1.43970431]
[1750807038436,11.78116695,2435.4,2435.3,0.78299431]
[1750807038639,0.65672,2435.3,2435.0,0.6612]
[1750807038845,0.65672,2435.3,2435.1,0.78299431]
[1750807039029,11.78116695,2435.4,2435.1,0.78299431]
[1750807039231,0.65671,2435.3,2435.2,0.78299431]
[1750807039431,0.65671,2435.3,2435.2,0.65672]
[1750807039632,0.65676,2435.1,2435.0,0.6612]
[1750807039834,5.20322695,2435.1,2435.0,0.6612]
[1750807040035,5.20322695,2435.1,2435.0,0.78299431]
[1750807040255,6.18841695,2435.1,2434.6,0.65689]
[1750807040451,3.2078,2434.9,2434.7,0.78299431]
[1750807040645,5.20333695,2434.7,2434.6,1.43989431]
[1750807040843,4.54646695,2434.7,2434.6,1.43989431]
[1750807042144,33.65210695,2434.9,2434.8,0.65684]
[1750807042836,32.99526695,2434.9,2434.5,0.7132]
[1750807043035,29.78746695,2434.9,2434.8,0.65684]
[1750807043536,29.78746695,2434.9,2434.8,1.43983431]
[1750807044044,30.44428695,2434.9,2434.8,1.43983431]
[1750807044646,5.20328695,2434.9,2434.8,1.43983431]
[1750807044839,30.44228695,2434.9,2434.8,1.43983431]
[1750807045641,30.44228695,2434.9,2434.8,0.78299431]
[1750807046441,30.44228695,2434.9,2434.8,1.43983431]
[1750807046846,30.44228695,2434.9,2434.8,0.78299431]
[1750807048443,0.65694,2434.5,2434.4,0.65694]
[1750807048642,5.20340695,2434.5,2434.4,1.43993431]
[1750807048843,5.20340695,2434.5,2434.4,0.78299431]
[1750807050446,4.54646695,2434.5,2434.1,0.65702]
[1750807050638,3.2078,2434.4,2434.3,0.65698]
[1750807050950,11.77939695,2434.5,2434.4,0.65695]
[1750807051145,12.82283033,2434.5,2434.4,1.43994431]
[1750807051746,12.16590033,2434.5,2434.4,1.43994431]
[1750807051948,12.82282033,2434.5,2434.4,1.43994431]
[1750807052749,12.16590033,2434.5,2434.4,1.43994431]
[1750807053948,5.58990033,2434.5,2434.4,1.43994431]
[1750807054149,1.04343338,2434.5,2434.4,1.43994431]
[1750807054349,28.4468,2434.7,2434.6,0.6569]
[1750807054552,29.49375313,2434.7,2434.6,1.43989431]
[1750807055852,1.04695313,2434.7,2434.6,2.79959431]
[1750807056049,25.239,2434.8,2434.7,0.65687]
[1750807056247,28.69125131,2434.8,2434.7,2.78396431]
[1750807056442,1.04708844,2434.8,2434.7,2.78396431]
[1750807056647,2.40516287,2435.0,2434.9,0.65682]
[1750807056852,3.45291407,2435.0,2434.9,1.43981431]
[1750807057752,1.0477512,2435.0,2434.9,1.43981431]
[1750807057950,1.0477512,2435.0,2434.9,2.78391431]
[1750807062955,0.1543612,2435.0,2434.9,2.78391431]
[1750807063153,2.40516287,2435.8,2435.7,0.6566]
[1750807063456,2.40516287,2435.8,2435.7,0.34866804]
[1750807063655,3.06173287,2435.8,2435.7,0.34866804]
[1750807064255,0.6566,2435.7,2435.6,0.65661]
[1750807064654,0.6566,2435.7,2435.5,2.00285]
[1750807064958,2.40516287,2435.6,2435.5,2.00285]
[1750807065151,10.43836,2435.9,2435.5,1.3462]
[1750807065460,2.40516287,2435.7,2435.6,2.0202]
[1750807065750,0.65663,2435.6,2435.5,2.00284]
[1750807066557,0.65663,2435.6,2435.5,1.3462]
[1750807067059,0.65663,2435.6,2435.5,0.6873]
[1750807067260,0.65668,2435.4,2435.3,0.6805]
[1750807067560,3.06184287,2435.4,2435.3,1.33721]
[1750807068249,3.06184287,2435.4,2435.3,0.6805]
[1750807068469,3.06184287,2435.4,2435.3,1.33721]
[1750807068757,2.40516287,2435.4,2435.3,1.33721]
[1750807068955,3.06184287,2435.4,2435.3,1.33721]
[1750807072761,0.65671,2435.3,2435.2,1.34201]
[1750807073257,0.65673,2435.2,2435.1,1.32655]
[1750807073458,3.06189287,2435.2,2435.1,1.32655]
[1750807073958,2.40516287,2435.2,2435.1,1.32655]
[1750807074349,3.06189287,2435.2,2435.1,1.32655]
[1750807075759,3.06189287,2435.2,2435.1,0.6698]
[1750807075967,6.26969287,2435.2,2435.1,1.32656]
[1750807076357,6.26969287,2435.2,2435.1,0.6698]
[1750807076660,6.26969287,2435.2,2435.1,1.32656]
[1750807079266,6.26969287,2435.2,2435.1,0.6698]
[1750807079466,6.26969287,2435.2,2435.1,1.32656]
[1750807080365,6.26969287,2435.2,2435.1,0.6698]
[1750807080664,0.65679,2435.0,2434.9,1.3399]
[1750807080970,0.65682,2434.9,2434.8,1.36874]
[1750807081766,2.40516287,2435.0,2434.9,0.65682]
[1750807082167,3.06195287,2435.0,2434.9,0.65682]
[1750807082765,0.65689,2434.7,2434.2,1.64249]
[1750807083066,0.65693,2434.5,2434.3,2.01585]
[1750807083361,2.40516287,2434.4,2434.3,2.01585]
[1750807083667,2.40516287,2434.4,2434.3,1.3589]
[1750807083870,3.06211287,2434.4,2434.3,1.3589]
[1750807084761,2.40516287,2434.4,2434.3,2.01588]
[1750807085959,6.26979287,2434.9,2434.7,0.65687]
[1750807086163,1.03951428,2434.8,2434.4,3.02418]
[1750807086466,6.26979287,2434.9,2434.8,0.65684]
[1750807086665,6.65314082,2434.9,2434.8,0.65684]
[1750807086869,4.24797795,2434.9,2434.8,0.65684]
[1750807088269,1.04017795,2434.9,2434.8,0.65684]
[1750807089673,1.04017795,2434.9,2434.8,1.35334]
[1750807089873,1.04017795,2434.9,2434.8,2.79234]
[1750807090372,8.97816287,2435.1,2435.0,0.65679]
[1750807090566,10.0182061,2435.1,2435.0,0.65679]
[1750807090770,3.4452061,2435.1,2435.0,0.65679]
[1750807091074,0.65682,2434.9,2434.8,2.79233]
[1750807091276,5.61296287,2434.9,2434.7,0.6594]
[1750807091470,6.26979287,2434.9,2434.8,0.65684]
[1750807091670,7.30928567,2434.9,2434.8,0.65684]
[1750807092173,0.65684,2434.8,2434.7,1.31625]
[1750807092471,1.6963328,2434.8,2434.7,1.31625]
[1750807093673,1.6963328,2434.8,2434.7,0.65685]
[1750807094876,0.6569,2434.6,2434.5,0.6569]
[1750807095174,4.10154216,2434.6,2434.5,0.6569]
[1750807095375,3.06206287,2434.6,2434.5,0.6569]
[1750807095574,4.1014839,2434.6,2434.5,0.6569]
[1750807095973,0.65692,2434.5,2434.4,2.07453]
[1750807096667,0.65692,2434.5,2434.4,1.4176]
[1750807097265,5.61296287,2434.6,2434.4,1.4176]
[1750807097677,5.61296287,2434.6,2434.5,0.65692]
[1750807098171,3.2078,2434.6,2434.5,0.65692]
[1750807098368,3.2078,2434.6,2434.5,2.10182]
[1750807099775,3.2078,2434.6,2434.5,2.11182]
[1750807100078,2.40516287,2434.9,2434.8,0.65684]
[1750807100381,1.04015861,2434.9,2434.8,0.65684]
[1750807100874,1.69697861,2434.9,2434.8,0.65684]
[1750807101374,1.04015861,2434.9,2434.8,0.65684]
[1750807106984,1.04015861,2434.9,2434.6,1.3183]
[1750807107189,5.58825125,2434.8,2434.7,0.65686]
[1750807107687,0.65688,2434.7,2434.6,0.65687]
[1750807107989,1.04015861,2434.7,2434.6,0.6569]
[1750807110498,0.65681,2435.0,2434.5,3.07171]
[1750807110797,1.04216718,2434.9,2434.8,0.65684]
[1750807111098,1.69898718,2434.9,2434.8,0.65684]
[1750807111493,1.04216718,2434.9,2434.8,0.65684]
[1750807114100,1.69899718,2434.9,2434.8,0.65684]
[1750807114401,1.04216718,2434.9,2434.8,0.65684]
[1750807126310,1.04216718,2434.9,2434.8,2.66094]
[1750807129113,3.4472339,2434.9,2434.8,2.66094]
[1750807130519,3.4472339,2434.9,2434.8,1.33784]
[1750807130715,4.1040539,2434.9,2434.8,1.33784]
[1750807131306,4.1040539,2434.9,2434.8,0.65684]
[1750807136322,3.4472339,2434.9,2434.8,0.65684]
[1750807136824,4.1040539,2434.9,2434.8,0.65684]
[1750807137323,0.65685,2434.8,2434.7,0.65684]
[1750807137517,4.90681718,2434.8,2434.7,0.65684]
[1750807138313,0.65687,2434.7,2434.6,0.7227]
[1750807138522,4.1041039,2434.7,2434.6,0.6569]
[1750807139419,4.1041039,2434.7,2434.5,0.65691]
[1750807139420,0.65691,2434.6,2434.5,0.65691]
[1750807139625,4.1041439,2434.6,2434.5,0.65691]
[1750807139818,10.0512339,2434.6,2433.8,4.90714714]
[1750807140019,3.06212672,2434.0,2433.9,0.6751]
[1750807140223,0.6571,2433.9,2433.6,0.7056]
[1750807140416,3.44732142,2433.8,2433.7,0.65714]
[1750807140816,3.44732142,2433.8,2433.5,1.33229]
[1750807141020,2.40506672,2433.6,2433.5,1.37229]
[1750807141212,4.10449142,2433.6,2433.5,0.7151]
[1750807141425,3.06223672,2433.6,2433.5,0.7151]
[1750807141717,0.65719,2433.5,2433.4,0.65721]
[1750807141924,3.06224672,2433.6,2433.5,0.65719]
[1750807142128,2.40506672,2433.6,2433.5,0.65719]
[1750807142319,3.06223672,2433.6,2433.4,0.6572]
[1750807142720,3.06223672,2433.6,2433.5,0.65719]
[1750807143025,3.44579527,2433.6,2433.5,0.65719]
[1750807143231,4.10297527,2433.6,2433.4,0.6572]
[1750807143530,0.65719,2433.5,2433.3,0.65723]
[1750807143716,0.65719,2433.5,2433.4,0.65722]
[1750807144118,0.65719,2433.5,2433.3,0.65723]
[1750807144421,0.65725,2433.3,2433.2,1.3605]
[1750807145420,0.65725,2433.3,2433.2,2.01777]
[1750807146315,0.65727,2433.2,2433.0,0.65731]
[1750807146523,2.40506672,2433.1,2432.6,3.2078]
[1750807146725,2.40506672,2432.8,2432.7,0.65741]
[1750807146922,2.40506672,2432.8,2432.7,0.99741]
[1750807147119,3.06244672,2432.8,2432.7,0.99741]
[1750807147327,5.61286672,2432.8,2432.5,0.7156]
[1750807147525,3.06250672,2432.6,2432.5,0.9156]
[1750807147719,0.65746,2432.5,2432.4,0.65747]
[1750807148027,0.65746,2432.5,2432.0,0.65759]
[1750807148028,0.65758,2432.1,2432.0,0.65759]
[1750807148231,2.40506672,2432.3,2432.2,0.65754]
[1750807149421,2.40506672,2432.3,2432.1,0.65756]
[1750807149422,3.06259672,2432.3,2432.1,0.65756]
[1750807149731,3.06259672,2432.3,2432.2,0.65754]
[1750807149924,2.40506672,2432.3,2432.2,0.65754]
[1750807150232,0.65751,2432.4,2432.2,0.65754]
[1750807150730,14.37121128,2432.5,2432.3,0.65751]
[1750807150929,14.37121128,2432.5,2432.0,1.3893]
[1750807150930,15.02870128,2432.5,2432.0,1.3893]
[1750807151134,15.02870128,2432.5,2432.3,0.65749]
[1750807151327,15.02870128,2432.5,2432.4,0.65749]
[1750807151524,0.65749,2432.4,2432.0,1.3893]
[1750807151732,14.37121128,2432.5,2432.0,1.3893]
[1750807151927,0.6575,2432.4,2432.3,0.65752]
[1750807152225,0.6575,2432.4,2432.2,0.65753]
[1750807152635,0.6575,2432.4,2432.3,0.65752]
[1750807152836,15.02869128,2432.5,2432.3,0.6575]
[1750807153031,0.65749,2432.4,2432.3,0.6575]
[1750807153228,15.02869128,2432.5,2432.0,1.3893]
[1750807153629,15.02869128,2432.5,2432.3,0.6575]
[1750807154037,15.02869128,2432.5,2432.4,0.65749]
[1750807154326,28.4888,2432.8,2432.7,0.65739]
[1750807154630,35.7402,2432.8,2432.6,0.65742]
[1750807155031,35.0828,2432.8,2432.7,0.65741]
[1750807155227,35.74018,2432.8,2432.6,0.65742]
[1750807155433,35.74018,2432.8,2432.7,0.65741]
[1750807155731,3.2078,2432.8,2432.7,0.65741]
[1750807156928,9.8028,2433.1,2433.0,0.65733]
[1750807157235,3.2078,2433.1,2433.0,0.65733]
[1750807157832,3.2078,2433.1,2433.0,2.02493]
[1750807158532,0.65733,2433.0,2432.9,1.32974]
[1750807158832,3.2078,2433.1,2433.0,0.65733]
[1750807159033,3.2078,2433.1,2433.0,2.02493]
[1750807159333,3.8651,2433.1,2433.0,2.02493]
[1750807160330,3.2078,2433.1,2432.9,0.6724]
[1750807160530,8.23833,2433.0,2432.5,0.6968]
[1750807160750,0.65744,2432.6,2432.5,1.35425]
[1750807161846,0.65746,2432.5,2432.4,0.6668]
[1750807162731,0.65746,2432.5,2432.4,1.32429]
[1750807163242,6.595,2432.7,2432.6,0.65744]
[1750807163544,25.97736,2432.9,2432.8,0.65738]
[1750807164041,14.36021128,2433.4,2432.6,4.85135]
[1750807164249,0.65726,2433.3,2433.2,0.65727]
[1750807164443,0.65727,2433.2,2433.1,0.65728]
[1750807164644,0.65727,2433.3,2433.2,0.65727]
[1750807165249,0.65727,2433.3,2433.1,0.65728]
[1750807165447,0.65727,2433.2,2433.1,0.65728]
[1750807167053,0.65726,2433.3,2433.2,0.65726]
[1750807167254,14.36021128,2433.4,2433.3,0.65725]
[1750807167454,40.79317539,2433.4,2433.3,0.65725]
[1750807167655,0.65725,2433.3,2433.2,0.65726]
[1750807168049,40.41445128,2433.4,2433.3,0.65725]
[1750807168250,41.45059304,2433.4,2433.3,0.65725]
[1750807168552,0.65726,2433.3,2433.2,0.65726]
[1750807168753,1.69340176,2433.3,2433.2,0.65726]
[1750807169459,0.65727,2433.2,2433.1,0.65728]
[1750807169758,0.65731,2433.1,2433.0,0.65731]
[1750807169952,0.65729,2433.2,2433.0,0.65731]
[1750807170159,0.65729,2433.2,2433.0,2.09721]
[1750807170360,0.6573,2433.1,2433.0,2.09721]
[1750807170758,0.6573,2433.1,2433.0,1.4399]
[1750807170956,0.65733,2433.0,2432.9,1.37486]
[1750807171358,1.69582692,2433.0,2432.9,1.37486]
[1750807171558,1.69582692,2433.0,2432.9,0.7175]
[1750807172362,1.69582692,2433.0,2432.9,1.37486]
[1750807172664,0.65729,2433.2,2432.9,2.1268]
[1750807172864,1.03923763,2433.1,2433.0,0.65733]
[1750807173162,1.03923763,2433.1,2433.0,2.06663]
[1750807176862,1.69653763,2433.1,2433.0,0.65733]
[1750807178565,1.03923763,2433.1,2433.0,0.65733]
[1750807178965,1.69653763,2433.1,2433.0,0.65733]
[1750807179366,4.90433763,2433.1,2433.0,0.65733]
[1750807179560,4.24703763,2433.1,2432.9,0.7175]
[1750807179765,1.03923763,2433.0,2432.9,1.37483]
[1750807179963,1.03923763,2433.0,2432.9,2.69843]
[1750807180363,3.2078,2433.1,2433.0,0.65733]
[1750807180559,4.24622503,2433.1,2433.0,1.98093]
[1750807181669,3.2078,2433.5,2433.4,0.65722]
[1750807181863,4.24676459,2433.5,2433.4,0.65722]
[1750807182467,4.24676459,2433.5,2433.4,1.98212]
[1750807184067,3.2078,2433.5,2433.4,1.98212]
[1750807184763,3.2078,2433.9,2433.5,0.65719]
[1750807184969,1.03927596,2433.8,2433.7,0.65714]
[1750807185171,3.2078,2434.2,2433.8,0.65711]
[1750807185374,3.2078,2434.2,2434.1,0.65703]
[1750807185579,4.24671169,2434.2,2434.1,0.65703]
[1750807185976,0.65706,2434.0,2433.9,2.02467]
[1750807186379,0.65705,2434.1,2433.9,2.02467]
[1750807187073,0.65706,2434.0,2433.9,2.02467]
[1750807188478,0.65706,2434.1,2433.9,2.02467]
[1750807188980,0.65706,2434.1,2434.0,0.65706]
[1750807189172,1.69387301,2434.1,2434.0,0.65706]
[1750807189367,0.65706,2434.1,2434.0,0.65706]
[1750807189878,3.2078,2434.2,2433.9,2.02467]
[1750807190076,1.03649481,2434.1,2433.9,2.02467]
[1750807190378,0.65706,2434.0,2433.9,2.02467]
[1750807190582,0.65709,2433.9,2433.8,0.65709]
[1750807191282,0.65709,2433.9,2433.8,0.65711]
[1750807191583,3.2078,2433.9,2433.8,0.65711]
[1750807192180,0.65708,2434.0,2433.9,0.65709]
[1750807192384,0.6571,2433.9,2433.8,0.6571]
[1750807192569,4.55741128,2434.1,2433.6,1.381]
[1750807192775,4.55741128,2434.1,2434.0,0.65706]
[1750807192776,5.21447128,2434.1,2434.0,0.65706]
[1750807193083,6.25091498,2434.1,2434.0,0.65706]
[1750807193781,0.65707,2434.0,2433.9,0.65707]
[1750807194184,0.65707,2434.0,2433.5,1.3651]
[1750807194185,4.55741128,2434.1,2433.5,1.3651]
[1750807194386,0.65713,2433.8,2433.7,0.65713]
[1750807194580,3.2078,2433.9,2433.8,0.65711]
[1750807196983,7.76521128,2434.2,2434.0,0.65705]
[1750807197482,1.69305689,2434.1,2434.0,0.65705]
[1750807197782,0.65707,2434.0,2433.9,0.65707]
[1750807198287,3.06408834,2434.0,2433.9,0.65707]
[1750807201781,2.40701834,2434.0,2433.9,0.65707]
[1750807201982,3.06407834,2434.0,2433.9,0.65707]
[1750807202286,2.40701834,2434.0,2433.9,0.65707]
[1750807202786,3.2078,2434.2,2434.1,0.65703]
[1750807202787,6.27183834,2434.2,2434.1,0.65703]
[1750807202987,7.30823966,2434.2,2434.1,0.65703]
[1750807205384,4.24420132,2434.2,2434.1,0.65703]
[1750807205587,3.2078,2434.2,2434.1,0.65703]
[1750807205881,0.65703,2434.1,2434.0,0.6665]
[1750807206089,0.65703,2434.1,2434.0,1.32354]
[1750807206387,5.61481834,2434.2,2433.6,3.2078]
[1750807206687,2.40701834,2433.9,2433.8,0.65709]
[1750807206884,27.73801834,2433.9,2433.8,0.65709]
[1750807207092,28.39510834,2433.9,2433.8,0.65709]
[1750807207796,25.331,2433.9,2433.8,0.65709]
[1750807208386,25.331,2433.9,2433.8,1.31029]
[1750807208690,29.21883,2434.2,2434.1,0.65703]
[1750807208887,30.25709997,2434.2,2434.1,0.65703]
[1750807209194,4.24606997,2434.2,2434.1,0.65703]
[1750807209395,29.59606997,2434.2,2434.1,0.65703]
[1750807210795,1.03826997,2434.2,2434.1,0.65703]
[1750807215189,5.65178932,2434.8,2434.7,0.65687]
[1750807215390,1.04085252,2434.8,2434.2,5.2978]
[1750807215598,1.04085252,2434.7,2434.6,0.65688]
[1750807216300,1.04085252,2434.7,2434.6,2.06118]
[1750807217296,1.69772252,2434.7,2434.6,2.06118]
[1750807218399,1.69772252,2434.7,2434.6,0.65688]
[1750807220208,1.04085252,2434.7,2434.6,0.65688]
[1750807220707,1.69772252,2434.7,2434.6,0.65688]
[1750807221605,1.04085252,2434.7,2434.6,0.65688]
[1750807221806,7.75771085,2435.1,2435.0,0.65679]
[1750807222009,4.24610295,2435.1,2435.0,0.65679]
[1750807222500,4.90288295,2435.1,2435.0,0.65679]
[1750807223502,33.09371085,2435.4,2434.8,1.4261]
[1750807223705,1.03755693,2435.3,2434.9,3.2078]
[1750807223903,1.03755693,2435.2,2435.0,2.0904]
[1750807224107,0.65673,2435.2,2435.1,2.07136]
[1750807224408,1.69427473,2435.2,2435.1,2.07136]
[1750807224605,0.65672,2435.3,2435.2,0.65673]
[1750807224804,1.69394733,2435.3,2435.2,0.65673]
[1750807225603,33.08671085,2435.4,2435.3,0.65671]
[1750807225604,3.2078,2435.4,2435.3,0.65671]
[1750807225811,4.24492594,2435.4,2435.3,0.65671]
[1750807226109,3.2078,2435.4,2435.3,0.65671]
[1750807226302,3.86448,2435.4,2435.3,0.65671]
[1750807226504,3.2078,2435.4,2435.3,0.65671]
[1750807227710,3.2078,2435.4,2435.3,2.08671]
[1750807232301,0.65666,2435.5,2435.4,0.65668]
[1750807232800,3.2078,2435.7,2435.3,1.43]
[1750807233005,0.65664,2435.6,2435.5,0.65664]
[1750807233208,0.65666,2435.5,2435.4,0.65667]
[1750807233408,0.65671,2435.3,2435.2,1.32812]
[1750807234310,0.65675,2435.2,2435.0,0.6758]
[1750807234504,2.40428767,2435.1,2435.0,1.33257]
[1750807234912,3.06104767,2435.1,2435.0,1.33257]
[1750807235213,0.65679,2435.0,2434.9,1.3233]
[1750807235417,0.65679,2435.0,2434.9,0.65682]
[1750807235607,0.65682,2434.9,2434.7,0.6665]
[1750807235807,0.65681,2435.0,2434.9,0.65681]
[1750807237310,2.40428767,2435.1,2435.0,0.65679]
[1750807238010,3.06104767,2435.1,2435.0,0.65679]
[1750807238317,2.40428767,2435.1,2435.0,0.65679]
[1750807238908,2.40428767,2435.3,2435.2,0.65673]
[1750807239214,10.06283059,2435.3,2435.2,0.65673]
[1750807239515,10.71954059,2435.3,2435.2,0.65673]
[1750807243621,10.06283059,2435.3,2435.2,0.65673]
[1750807244417,10.71954059,2435.3,2435.2,0.65673]
[1750807245815,10.06283059,2435.3,2435.2,0.65673]
[1750807246122,10.71954059,2435.3,2435.2,0.65673]
[1750807247324,10.06283059,2435.3,2435.2,0.65673]
[1750807247521,10.71954059,2435.3,2435.2,0.65673]
[1750807247714,1.03954292,2435.3,2435.2,0.65673]
[1750807247916,6.597,2435.5,2435.4,0.65668]
[1750807248216,7.63981397,2435.5,2435.4,0.65668]
[1750807248817,8.29646397,2435.5,2435.4,0.65668]
[1750807249221,0.6567,2435.4,2435.3,0.65669]
[1750807249518,6.65490164,2435.4,2435.1,0.6799]
[1750807249717,26.99054397,2435.3,2435.2,0.65673]
[1750807249919,29.39483164,2435.3,2435.2,0.65673]
[1750807251222,0.65678,2435.1,2435.0,0.65678]
[1750807251422,6.26886767,2435.1,2435.0,0.65678]
[1750807251622,7.31168164,2435.1,2435.0,0.65678]
[1750807252928,0.65681,2435.0,2434.9,0.65681]
[1750807253124,0.65682,2434.9,2434.8,0.65682]
[1750807253427,4.10392164,2434.9,2434.8,0.65682]
[1750807253831,3.44710164,2434.9,2434.8,0.65682]
[1750807255427,1.04281397,2434.9,2434.8,0.65682]
[1750807255628,25.293,2435.0,2434.9,0.65682]
[1750807255825,26.33681309,2435.0,2434.9,0.65682]
[1750807257430,1.04381309,2435.0,2434.9,0.65682]
[1750807257625,1.04381309,2435.0,2434.9,3.86462]
[1750807257821,1.04381309,2435.0,2434.9,0.65682]
[1750807260737,25.285,2435.1,2435.0,0.65679]
[1750807260928,1.04540363,2435.1,2435.0,0.65679]
[1750807261530,1.04540363,2435.1,2435.0,1.32449]
[1750807264237,3.86446,2435.5,2435.4,0.65668]
[1750807264433,30.17957535,2435.5,2435.4,0.65668]
[1750807264638,0.65669,2435.4,2435.3,0.65669]
[1750807264831,1.70280535,2435.4,2435.3,0.65669]
[1750807265033,26.96980535,2435.4,2435.3,0.65669]
[1750807265239,1.70280535,2435.4,2435.3,0.65669]
[1750807265430,26.96980535,2435.4,2435.3,0.65669]
[1750807265632,1.04611535,2435.4,2435.3,0.65669]
[1750807266139,26.31311535,2435.4,2435.3,0.65669]
[1750807268134,26.96979535,2435.4,2435.3,0.65669]
[1750807268331,26.31311535,2435.4,2435.3,0.65669]
[1750807269942,26.31111535,2435.4,2435.3,0.65669]
[1750807270141,1.04611535,2435.4,2435.3,0.65669]
[1750807270337,26.31111535,2435.4,2435.3,0.65669]
[1750807270939,1.04611535,2435.4,2435.3,0.65669]
[1750807274745,0.65672,2435.3,2435.2,0.65671]
[1750807275044,4.10712302,2435.3,2435.2,0.65671]
[1750807276547,3.45040302,2435.3,2435.2,0.65671]
[1750807277234,4.10711302,2435.3,2435.2,0.65671]
[1750807280143,4.10711302,2435.3,2435.0,0.6677]
[1750807280353,2.40428767,2435.1,2434.8,0.6652]
[1750807280549,1.70291535,2435.0,2434.8,0.6652]
[1750807280744,35.72054,2435.2,2434.8,0.6652]
[1750807280949,1.04425168,2435.1,2434.9,1.374]
[1750807281151,1.70104168,2435.0,2434.9,2.03081]
[1750807281350,1.70104168,2435.0,2434.9,1.374]
[1750807281651,0.65684,2434.8,2434.7,0.6642]
[1750807282450,5.89418132,2434.8,2434.2,3.8648]
[1750807282646,3.06123767,2434.4,2434.3,0.7034]
[1750807282843,0.65698,2434.3,2434.2,0.7098]
[1750807283043,1.70124132,2434.3,2434.2,0.7198]
[1750807283251,1.70124132,2434.3,2434.2,0.7098]
[1750807285646,0.65698,2434.3,2434.2,0.7098]
[1750807294267,0.657,2434.2,2434.1,0.7034]
[1750807294462,0.65714,2433.7,2433.6,1.4456]
[1750807294668,0.65714,2433.7,2433.6,2.0056]
[1750807295268,0.65714,2433.7,2433.6,1.4456]
[1750807295770,0.65717,2433.6,2433.5,0.6559]
[1750807295967,0.65717,2433.6,2433.5,0.7259]
[1750807296163,0.65717,2433.6,2433.5,0.6559]
[1750807296566,0.65717,2433.6,2433.5,1.31309]
[1750807297272,0.65717,2433.6,2433.5,0.6559]
[1750807299870,0.65719,2433.5,2433.4,0.6748]
[1750807300071,3.06147767,2433.5,2433.4,0.6748]
[1750807300273,28.33347767,2433.5,2433.4,0.6748]
[1750807300479,28.33347767,2433.5,2433.4,1.33202]
[1750807300874,28.33347767,2433.5,2433.4,0.6748]
[1750807301979,0.65725,2433.3,2433.2,0.6616]
[1750807302272,0.65725,2433.3,2433.2,1.3831]
[1750807302572,3.06153767,2433.3,2433.2,1.4031]
[1750807302879,0.65736,2432.9,2432.8,3.86516]
[1750807303176,0.65736,2432.9,2432.8,4.4203]
[1750807303375,0.65736,2432.9,2432.8,3.8703]
[1750807303678,0.65736,2432.9,2432.8,5.85798]
[1750807304069,0.65736,2432.9,2432.8,5.2006]
[1750807304768,0.65734,2433.0,2432.9,0.65735]
[1750807304976,3.06160767,2433.1,2433.0,0.65733]
[1750807305174,6.596,2433.2,2433.1,0.6573]
[1750807305569,7.25327,2433.2,2433.1,0.6573]
[1750807305876,6.596,2433.2,2433.1,0.6573]
[1750807306276,6.596,2433.2,2433.1,1.9835]
[1750807308676,3.2078,2433.4,2433.1,6.3262]
[1750807308871,0.65718,2433.6,2433.5,0.65719]
[1750807309381,10.45895,2433.7,2433.6,0.65717]
[1750807309572,0.65717,2433.6,2433.5,0.65718]
[1750807309772,2.40428767,2433.6,2433.1,3.2078]
[1750807309974,6.26931767,2433.4,2433.3,0.65723]
[1750807312083,0.65725,2433.3,2433.2,0.65726]